bitfinex/quotes_SOLUSD_20250612
["timestamp","ask_amount","ask_price","bid_price","bid_amount"]
[1749763123696,0.8900661,153.05,153.02,30.99195615]
[1749763123884,5.63337232,153.05,153.01,61.43195615]
[1749763124087,0.8900661,153.05,153.02,30.99195615]
[1749763124493,38.4158358,153.05,153.01,61.43195615]
[1749763125375,0.8900661,153.05,153.01,61.43195615]
[1749763125578,38.41594411,153.05,153.01,30.44]
[1749763126208,30.99195615,153.04,153.01,30.44]
[1749763126413,30.99195615,153.03,152.99,61.41195615]
[1749763126596,30.99195615,153.04,152.99,61.41195615]
[1749763126794,30.99195615,153.04,152.98,0.14216157]
[1749763126995,30.99195615,153.04,152.99,61.41195615]
[1749763127198,30.99195615,153.01,152.95,8.0557]
[1749763127394,30.99195615,153.02,152.97,61.41195615]
[1749763127598,30.99195615,153.02,152.98,30.99195615]
[1749763127895,37.52716596,153.02,152.97,61.41195615]
[1749763128295,30.99195615,153.01,152.97,61.41195615]
[1749763128496,30.99195615,153.01,152.97,30.99195615]
[1749763128715,30.99195615,152.99,152.96,30.42]
[1749763129015,30.99195615,153.0,152.96,30.42]
[1749763129516,30.99195615,153.0,152.96,61.41195615]
[1749763129838,30.99195615,153.0,152.96,30.42]
[1749763130034,30.99195615,153.0,152.96,30.4]
[1749763130530,56.99195615,153.01,152.97,30.99195615]
[1749763130693,56.99195615,153.01,152.96,61.39195615]
[1749763130895,56.99195615,153.01,152.96,30.4]
[1749763131092,56.99195615,153.01,152.96,61.39195615]
[1749763132697,56.99195615,153.01,152.97,30.99195615]
[1749763133020,56.99195615,153.01,152.96,61.39195615]
[1749763134124,56.99195615,153.01,152.96,30.4]
[1749763134422,56.99195615,153.01,152.96,61.39195615]
[1749763135206,26.0,152.99,152.94,8.2]
[1749763135404,20.50089479,152.97,152.94,8.2]
[1749763135603,20.50089479,152.98,152.94,8.2]
[1749763135804,20.50089479,152.98,152.94,38.58]
[1749763136619,20.50089479,152.97,152.94,38.58]
[1749763137360,30.76407648,152.97,152.94,38.58]
[1749763137527,30.76407648,152.97,152.94,8.2]
[1749763137827,6.53637492,152.99,152.94,8.2]
[1749763137828,30.76407648,152.96,152.94,8.2]
[1749763138738,37.30185797,152.96,152.94,8.2]
[1749763139021,30.76407648,152.95,152.94,8.2]
[1749763139727,26.0,152.92,152.87,30.36]
[1749763139929,26.0,152.92,152.86,8.02]
[1749763140103,30.76407648,152.87,152.86,8.02]
[1749763140816,56.76407648,152.87,152.86,8.02]
[1749763141002,26.0,152.84,152.78,8.02]
[1749763141206,30.76407648,152.8,152.78,8.02]
[1749763141432,30.76407648,152.79,152.78,8.02]
[1749763142430,56.76407648,152.79,152.78,8.02]
[1749763142636,26.0,152.76,152.69,14.1162]
[1749763142841,30.76407648,152.72,152.69,38.38]
[1749763143133,30.76407648,152.7,152.69,8.02]
[1749763143334,18.64964886,152.76,152.69,8.02]
[1749763143547,30.76407648,152.71,152.69,8.02]
[1749763143706,30.76407648,152.72,152.69,8.02]
[1749763143906,30.76407648,152.71,152.69,8.02]
[1749763144249,30.76407648,152.7,152.69,8.02]
[1749763144803,26.0,152.76,152.69,8.02]
[1749763145034,30.76407648,152.73,152.69,8.02]
[1749763145408,30.76407648,152.72,152.69,8.02]
[1749763145812,30.76407648,152.7,152.69,8.02]
[1749763147312,37.31286495,152.7,152.63,45.16]
[1749763147500,30.76407648,152.67,152.63,45.16]
[1749763148851,30.76407648,152.66,152.63,45.16]
[1749763149010,30.76407648,152.64,152.61,8.02]
[1749763149205,30.76407648,152.62,152.61,8.02]
[1749763149444,30.76407648,152.63,152.61,8.02]
[1749763149942,56.76407648,152.65,152.61,8.02]
[1749763150238,56.76407648,152.68,152.63,30.76407648]
[1749763150724,6.0791,152.71,152.65,30.76407648]
[1749763150934,30.76407648,152.69,152.62,6.97861436]
[1749763151106,26.0,152.7,152.63,30.76407648]
[1749763151313,26.0,152.7,152.64,30.76407648]
[1749763151515,30.76407648,152.69,152.62,6.97861436]
[1749763151719,30.76407648,152.68,152.63,30.76407648]
[1749763151921,30.76407648,152.67,152.62,30.76407648]
[1749763152123,30.76407648,152.65,152.61,38.38]
[1749763152446,30.76407648,152.62,152.61,8.02]
[1749763152604,26.0,152.63,152.61,8.02]
[1749763152808,26.0,152.65,152.61,38.78407648]
[1749763153009,26.0,152.65,152.62,30.76407648]
[1749763153322,30.76407648,152.64,152.61,8.02]
[1749763153522,56.76407648,152.65,152.61,8.02]
[1749763154030,30.76407648,152.63,152.61,8.02]
[1749763154218,30.76407648,152.62,152.61,8.02]
[1749763154608,26.0,152.65,152.61,8.02]
[1749763154809,56.76407648,152.62,152.53,38.36]
[1749763155048,30.76407648,152.59,152.54,30.76407648]
[1749763155215,30.76407648,152.59,152.53,8.02]
[1749763155416,30.76407648,152.59,152.55,30.76407648]
[1749763156239,30.76407648,152.59,152.53,8.02]
[1749763156443,30.76407648,152.59,152.55,30.76407648]
[1749763156649,30.76407648,152.57,152.53,8.02]
[1749763156820,26.0,152.59,152.53,8.02]
[1749763156821,30.76407648,152.56,152.53,8.02]
[1749763157019,30.76407648,152.55,152.53,8.02]
[1749763157941,26.0,152.57,152.53,8.02]
[1749763158112,30.76407648,152.56,152.53,8.02]
[1749763158310,30.76407648,152.55,152.53,8.02]
[1749763159350,30.76407648,152.54,152.53,8.02]
[1749763160619,30.76407648,152.55,152.53,8.02]
[1749763161037,26.0,152.56,152.53,8.02]
[1749763161237,30.76407648,152.55,152.53,8.02]
[1749763162036,30.76407648,152.54,152.53,8.02]
[1749763165364,26.0,152.51,152.45,8.04]
[1749763165648,30.76407648,152.48,152.45,8.04]
[1749763165851,30.76407648,152.47,152.45,8.04]
[1749763166034,26.0,152.51,152.45,8.04]
[1749763166353,30.76407648,152.48,152.45,8.04]
[1749763167128,30.76407648,152.49,152.45,8.04]
[1749763168353,30.76407648,152.47,152.45,8.04]
[1749763168555,30.76407648,152.46,152.45,8.04]
[1749763169057,26.0,152.49,152.45,8.04]
[1749763169429,56.76407648,152.49,152.45,8.04]
[1749763170034,30.76407648,152.48,152.45,8.04]
[1749763171267,27.6291,152.5,152.45,8.04]
[1749763171439,26.0,152.48,152.45,8.04]
[1749763171642,56.76407648,152.48,152.45,8.04]
[1749763171863,30.76407648,152.49,152.45,8.04]
[1749763173756,30.76407648,152.48,152.45,8.04]
[1749763173952,26.0,152.48,152.45,38.80407648]
[1749763174670,30.76407648,152.5,152.45,38.80407648]
[1749763175041,26.0,152.51,152.47,30.76407648]
[1749763175273,26.0,152.51,152.48,30.76407648]
[1749763175765,7.6998,152.54,152.49,30.76407648]
[1749763175970,7.6664,152.58,152.5,30.76407648]
[1749763176136,26.0,152.53,152.51,30.76407648]
[1749763176334,30.76407648,152.56,152.51,30.76407648]
[1749763176534,26.0,152.53,152.51,30.76407648]
[1749763177343,26.0,152.54,152.5,30.76407648]
[1749763178349,30.76407648,152.53,152.48,30.76407648]
[1749763178660,63.31940235,152.55,152.5,30.76407648]
[1749763179472,7.6664,152.58,152.52,30.76407648]
[1749763179686,1.5382,152.62,152.57,30.76407648]
[1749763179845,1.5382,152.62,152.52,30.3]
[1749763179846,30.76407648,152.6,152.53,19.07613357]
[1749763180040,26.0,152.6,152.55,30.76407648]
[1749763180244,37.31576657,152.64,152.59,30.76407648]
[1749763180468,56.76407648,152.62,152.57,30.76407648]
[1749763180675,26.0,152.62,152.58,30.76407648]
[1749763181440,26.0,152.62,152.59,30.76407648]
[1749763181753,26.0,152.62,152.57,19.07613357]
[1749763182672,37.31576657,152.64,152.57,19.07613357]
[1749763182972,26.0,152.63,152.57,19.07613357]
[1749763184048,6.5501238,152.67,152.62,30.76407648]
[1749763184265,30.76407648,152.66,152.62,30.76407648]
[1749763184449,26.0,152.64,152.62,30.76407648]
[1749763184960,30.76407648,152.67,152.63,30.76407648]
[1749763185168,6.54964631,152.68,152.63,30.76407648]
[1749763185363,37.31372279,152.68,152.63,30.76407648]
[1749763185749,22.76541541,152.73,152.67,30.76407648]
[1749763185954,63.31329384,152.69,152.65,30.76407648]
[1749763186365,32.54921736,152.69,152.65,30.76407648]
[1749763186871,63.31329384,152.69,152.65,30.76407648]
[1749763187071,32.54921736,152.69,152.63,30.76407648]
[1749763187253,30.76407648,152.68,152.63,30.76407648]
[1749763187583,30.76407648,152.67,152.63,30.76407648]
[1749763187784,30.76407648,152.68,152.63,30.76407648]
[1749763187953,37.31385511,152.68,152.64,30.76407648]
[1749763189155,37.31385511,152.68,152.63,30.76407648]
[1749763189481,30.76407648,152.65,152.59,18.64964886]
[1749763189776,26.0,152.66,152.59,18.64964886]
[1749763189777,30.76407648,152.64,152.59,30.76407648]
[1749763189980,26.0,152.66,152.57,30.76407648]
[1749763189981,37.31654654,152.62,152.57,30.76407648]
[1749763190177,6.55247006,152.62,152.57,30.76407648]
[1749763190355,30.76407648,152.62,152.57,30.76407648]
[1749763190553,37.31636134,152.62,152.57,30.76407648]
[1749763190773,30.76407648,152.61,152.56,18.64964886]
[1749763190969,30.76407648,152.61,152.56,49.41372534]
[1749763191884,30.76407648,152.61,152.56,30.76407648]
[1749763192079,37.31753128,152.6,152.56,30.76407648]
[1749763192255,37.31753128,152.6,152.55,30.76407648]
[1749763192460,30.76407648,152.59,152.55,30.76407648]
[1749763192766,37.31753128,152.6,152.55,30.76407648]
[1749763192975,30.76407648,152.59,152.55,30.76407648]
[1749763193285,30.76407648,152.57,152.54,7.96]
[1749763193457,56.76407648,152.59,152.54,38.72407648]
[1749763194178,63.31796491,152.59,152.54,38.72407648]
[1749763194770,63.31796491,152.59,152.54,7.96]
[1749763194980,63.31796491,152.59,152.54,38.72407648]
[1749763196599,30.76407648,152.61,152.56,30.76407648]
[1749763196897,30.76407648,152.6,152.55,30.76407648]
[1749763197204,30.76407648,152.6,152.54,7.96]
[1749763197491,30.76407648,152.6,152.55,30.76407648]
[1749763197690,26.0,152.61,152.55,30.76407648]
[1749763198275,6.55307994,152.6,152.55,30.76407648]
[1749763198994,6.55307994,152.6,152.54,7.96]
[1749763199193,30.76407648,152.57,152.54,7.96]
[1749763200188,37.31876997,152.57,152.54,7.96]
[1749763200599,30.76407648,152.57,152.54,7.96]
[1749763200896,37.31818261,152.58,152.54,7.96]
[1749763201265,30.76407648,152.59,152.54,38.72407648]
[1749763201497,63.31732796,152.6,152.55,30.76407648]
[1749763201672,32.55325148,152.6,152.56,30.76407648]
[1749763201871,37.31543916,152.64,152.59,30.76407648]
[1749763202075,6.4721,152.65,152.61,30.76407648]
[1749763202076,6.5510421,152.65,152.61,30.76407648]
[1749763202295,37.31511858,152.65,152.6,30.76407648]
[1749763202682,26.0,152.62,152.6,30.76407648]
[1749763202897,37.31511858,152.65,152.6,30.76407648]
[1749763203674,22.72143688,152.69,152.63,30.76407648]
[1749763203872,1.6059,152.7,152.64,30.76407648]
[1749763204068,7.9533,152.73,152.67,30.76407648]
[1749763204268,30.76407648,152.71,152.67,30.76407648]
[1749763204484,37.3125625,152.71,152.67,30.76407648]
[1749763204698,37.3125625,152.71,152.66,30.76407648]
[1749763205099,26.0,152.68,152.66,30.76407648]
[1749763205503,6.54848602,152.71,152.67,30.76407648]
[1749763205804,30.76407648,152.73,152.67,30.16]
[1749763206004,26.0,152.72,152.67,30.16]
[1749763206371,32.54802782,152.72,152.67,30.16]
[1749763208374,32.54802782,152.72,152.68,30.76407648]
[1749763209979,32.54802782,152.72,152.67,30.16]
[1749763210314,6.54578778,152.77,152.71,30.76407648]
[1749763210513,37.30986426,152.77,152.73,30.76407648]
[1749763210684,37.30986426,152.77,152.68,0.42648471]
[1749763210685,26.0,152.76,152.72,30.76407648]
[1749763211011,26.0,152.76,152.73,30.76407648]
[1749763211172,30.76407648,152.8,152.75,30.76407648]
[1749763211615,26.0,152.77,152.76,30.76407648]
[1749763211800,6.54460003,152.8,152.76,30.76407648]
[1749763212105,6.5441862,152.81,152.77,30.76407648]
[1749763212477,26.0,152.8,152.77,30.76407648]
[1749763213103,6.5441862,152.81,152.77,30.76407648]
[1749763213514,26.0,152.8,152.77,30.76407648]
[1749763213683,32.54460442,152.8,152.77,30.76407648]
[1749763213883,26.0,152.79,152.77,30.76407648]
[1749763215584,26.0,152.79,152.76,30.76407648]
[1749763217710,26.0,152.79,152.77,30.76407648]
[1749763219093,6.54460442,152.8,152.77,30.76407648]
[1749763219302,32.54422776,152.81,152.77,30.76407648]
[1749763219488,63.30830424,152.81,152.75,30.14]
[1749763219682,26.0,152.81,152.79,30.76407648]
[1749763219925,26.0,152.81,152.8,30.76407648]
[1749763220104,26.0,152.83,152.8,30.76407648]
[1749763220489,32.5432289,152.83,152.8,30.76407648]
[1749763220694,26.0,152.82,152.8,30.76407648]
[1749763221089,37.30612107,152.86,152.81,30.76407648]
[1749763221410,26.0,152.85,152.81,30.76407648]
[1749763221916,6.5416504,152.87,152.84,30.76407648]
[1749763222216,26.0,152.87,152.84,30.76407648]
[1749763222396,6.54079682,152.89,152.85,30.76407648]
[1749763222587,26.0,152.88,152.84,30.76407648]
[1749763222993,37.3048733,152.89,152.84,30.76407648]
[1749763223324,26.0,152.88,152.84,30.76407648]
[1749763223911,32.54123368,152.88,152.84,30.76407648]
[1749763225411,63.30487187,152.89,152.84,30.76407648]
[1749763225595,30.76407648,152.85,152.76,41.6273]
[1749763225922,30.76407648,152.85,152.78,0.42648471]
[1749763226089,26.0,152.86,152.79,30.76407648]
[1749763226293,30.76407648,152.84,152.8,30.76407648]
[1749763226491,30.76407648,152.83,152.79,30.76407648]
[1749763226888,56.76407648,152.84,152.79,30.76407648]
[1749763227088,26.0,152.84,152.79,30.76407648]
[1749763227290,37.30729443,152.83,152.79,30.76407648]
[1749763228027,6.54321795,152.83,152.79,30.76407648]
[1749763228223,37.30729443,152.83,152.79,30.76407648]
[1749763228715,6.54321795,152.83,152.79,30.76407648]
[1749763232029,30.76407648,152.82,152.77,30.76407648]
[1749763232496,30.76407648,152.82,152.77,60.78407648]
[1749763232814,6.54321795,152.83,152.78,30.76407648]
[1749763233018,30.76407648,152.82,152.78,30.76407648]
[1749763233700,30.76407648,152.82,152.77,60.78407648]
[1749763233894,30.76407648,152.82,152.77,30.76407648]
[1749763234220,6.54407434,152.81,152.77,60.76407648]
[1749763234728,6.54407434,152.81,152.77,30.76407648]
[1749763235128,37.30815082,152.81,152.76,69.05056119]
[1749763235615,6.54407434,152.81,152.77,30.76407648]
[1749763237521,37.30815082,152.81,152.77,30.76407648]
[1749763240612,6.54407434,152.81,152.77,30.76407648]
[1749763241222,26.0,152.81,152.77,20.55315671]
[1749763242467,32.54444848,152.81,152.77,20.55315671]
[1749763244736,26.0,152.81,152.77,20.55315671]
[1749763244915,26.0,152.82,152.79,20.55315671]
[1749763245524,26.0,152.82,152.78,20.55315671]
[1749763250643,26.0,152.82,152.76,37.86]
[1749763250843,53.09703135,152.82,152.77,20.55315671]
[1749763251044,32.54387464,152.82,152.78,20.55315671]
[1749763251345,26.0,152.82,152.78,20.55315671]
[1749763254853,30.75066445,152.82,152.79,20.55315671]
[1749763255147,12.51130038,152.86,152.79,20.55315671]
[1749763255148,53.09597666,152.84,152.79,20.55315671]
[1749763255353,4.75421596,152.83,152.79,20.55315671]
[1749763255640,53.09597666,152.84,152.79,20.55315671]
[1749763255839,4.7546189,152.83,152.79,20.55315671]
[1749763256049,53.09597666,152.84,152.79,20.55315671]
[1749763256236,4.7551608,152.83,152.79,20.55315671]
[1749763256558,4.75732022,152.83,152.79,20.55315671]
[1749763256858,53.09597666,152.84,152.79,20.55315671]
[1749763257034,4.75737248,152.83,152.79,20.55315671]
[1749763257229,4.75760616,152.83,152.79,20.55315671]
[1749763257739,53.09597666,152.84,152.79,20.55315671]
[1749763258049,4.75784281,152.83,152.79,20.55315671]
[1749763258540,11.30108355,152.83,152.79,20.55315671]
[1749763258721,6.54324074,152.83,152.79,20.55315671]
[1749763258923,53.09613653,152.84,152.79,20.55315671]
[1749763259830,46.55315671,152.84,152.79,20.55315671]
[1749763260032,53.09598974,152.84,152.79,20.55315671]
[1749763263270,32.54283303,152.84,152.79,20.55315671]
[1749763263549,53.09598974,152.84,152.79,20.55315671]
[1749763263759,32.54283303,152.84,152.79,20.55315671]
[1749763263922,53.09598974,152.84,152.79,20.55315671]
[1749763265720,26.0,152.84,152.81,20.55315671]
[1749763267145,26.0,152.84,152.82,20.55315671]
[1749763267843,26.0,152.84,152.81,20.55315671]
[1749763268052,32.54294741,152.84,152.8,50.41315671]
[1749763271159,20.55315671,152.83,152.78,96.18]
[1749763271464,20.55315671,152.83,152.78,126.02]
[1749763271938,20.55315671,152.83,152.78,146.57315671]
[1749763273080,27.09657332,152.83,152.78,146.57315671]
[1749763273741,27.09657332,152.83,152.78,116.73315671]
[1749763273941,27.09657332,152.83,152.78,146.57315671]
[1749763274342,27.09657332,152.83,152.78,126.02]
[1749763274650,27.09657332,152.83,152.78,146.57315671]
[1749763275035,27.09657332,152.83,152.78,58.07315671]
[1749763276368,26.0,152.82,152.81,20.55315671]
[1749763276683,26.0,152.83,152.81,20.55315671]
[1749763276985,26.0,152.83,152.8,20.55315671]
[1749763277487,27.09594092,152.85,152.8,20.55315671]
[1749763278248,27.09594092,152.85,152.78,63.52]
[1749763278447,20.55315671,152.84,152.79,20.55315671]
[1749763278654,20.55315671,152.84,152.79,50.35315671]
[1749763280691,27.09594907,152.84,152.79,50.35315671]
[1749763281690,27.09594907,152.84,152.8,20.55315671]
[1749763282279,20.55315671,152.84,152.8,20.55315671]
[1749763283471,27.09597999,152.84,152.8,20.55315671]
[1749763284188,27.09597999,152.84,152.79,50.35315671]
[1749763285688,27.09597999,152.84,152.8,20.55315671]
[1749763285896,20.55315671,152.85,152.8,20.55315671]
[1749763286188,25.31914095,152.85,152.8,20.55315671]
[1749763287264,6.54278984,152.84,152.8,20.55315671]
[1749763288783,11.30783144,152.84,152.8,20.55315671]
[1749763288986,6.54278984,152.84,152.8,20.55315671]
[1749763290289,31.86098815,152.84,152.79,29.8]
[1749763290585,27.09594655,152.84,152.79,50.35315671]
[1749763290970,31.85942641,152.84,152.79,50.35315671]
[1749763291263,27.09594655,152.84,152.79,50.35315671]
[1749763291776,31.8593492,152.84,152.79,50.35315671]
[1749763291978,27.09594655,152.84,152.79,50.35315671]
[1749763292191,6.54278984,152.84,152.79,50.35315671]
[1749763292370,31.86014462,152.84,152.79,50.35315671]
[1749763292570,6.54278984,152.84,152.79,50.35315671]
[1749763292969,11.30918358,152.84,152.79,50.35315671]
[1749763294002,31.86234029,152.84,152.79,29.8]
[1749763294296,27.09594655,152.84,152.79,29.8]
[1749763294678,20.55315671,152.83,152.78,7.68]
[1749763294882,11.31144344,152.84,152.78,57.97315671]
[1749763294883,27.09594655,152.84,152.78,57.97315671]
[1749763295079,20.55315671,152.83,152.78,57.97315671]
[1749763295475,46.55315671,152.83,152.78,7.68]
[1749763295677,20.55315671,152.81,152.78,7.68]
[1749763295873,25.32126613,152.82,152.78,7.68]
[1749763296283,20.55315671,152.82,152.78,7.68]
[1749763296495,25.32124732,152.82,152.78,7.68]
[1749763296675,27.09734113,152.81,152.78,7.68]
[1749763297878,6.54418442,152.81,152.78,7.68]
[1749763298187,31.86496448,152.82,152.78,7.68]
[1749763300369,4.76809061,152.82,152.78,7.68]
[1749763300570,57.86461527,152.83,152.78,28.23315671]
[1749763300802,53.09652466,152.83,152.78,28.23315671]
[1749763301799,32.54336795,152.83,152.78,28.23315671]
[1749763302110,53.09652466,152.83,152.78,28.23315671]
[1749763304113,53.09652466,152.83,152.79,20.55315671]
[1749763304319,26.0,152.83,152.8,20.55315671]
[1749763304480,32.54334041,152.83,152.79,20.55315671]
[1749763306182,53.09649712,152.83,152.78,57.93315671]
[1749763306909,32.54334041,152.83,152.78,57.93315671]
[1749763307112,53.09649712,152.83,152.78,37.38]
[1749763307281,53.09649712,152.83,152.78,57.93315671]
[1749763310606,53.09649712,152.83,152.78,37.38]
[1749763310784,53.09649712,152.83,152.78,57.93315671]
[1749763311186,45.69535166,152.83,152.78,50.53201125]
[1749763311683,45.69535166,152.83,152.78,37.38]
[1749763311915,45.69535166,152.83,152.78,50.53201125]
[1749763312579,13.15201125,152.82,152.78,50.53201125]
[1749763312811,45.69535166,152.83,152.78,50.53201125]
[1749763313497,26.0,152.83,152.8,13.15201125]
[1749763313906,26.0,152.85,152.81,13.15201125]
[1749763314225,30.76919777,152.85,152.81,13.15201125]
[1749763314411,30.76919777,152.85,152.82,13.15201125]
[1749763314724,26.0,152.85,152.82,13.15201125]
[1749763316119,4.77176734,152.86,152.82,13.15201125]
[1749763317211,4.77176734,152.86,152.82,20.53902955]
[1749763317410,11.31373017,152.86,152.82,20.53902955]
[1749763317722,53.08066276,152.87,152.82,20.53902955]
[1749763318503,14.12280742,152.91,152.82,20.53902955]
[1749763318504,7.46646486,152.92,152.86,20.53902955]
[1749763318722,4.77083567,152.93,152.89,26.0]
[1749763318934,25.30986522,152.94,152.89,46.53902955]
[1749763319228,25.30986522,152.94,152.89,26.0]
[1749763319408,27.07763093,152.94,152.89,46.53902955]
[1749763320319,27.07763093,152.94,152.89,20.53902955]
[1749763320515,27.07763093,152.94,152.86,55.64]
[1749763320830,27.07763093,152.94,152.89,20.53902955]
[1749763321008,20.53902955,152.93,152.88,20.53902955]
[1749763321602,6.53936698,152.92,152.88,20.53902955]
[1749763321801,6.53936698,152.92,152.86,55.64]
[1749763321802,6.53936698,152.92,152.89,20.53902955]
[1749763322002,20.53902955,152.94,152.9,20.53902955]
[1749763322003,6.53892939,152.94,152.9,20.53902955]
[1749763322602,27.07795894,152.94,152.86,55.64]
[1749763322833,20.53902955,152.93,152.88,20.53902955]
[1749763323223,27.07795894,152.94,152.89,20.53902955]
[1749763324842,6.53892939,152.94,152.89,20.53902955]
[1749763325012,27.07795894,152.94,152.89,20.53902955]
[1749763326815,6.53892939,152.94,152.9,20.53902955]
[1749763327849,6.53815904,152.95,152.92,20.53902955]
[1749763328215,6.53815904,152.95,152.9,29.58]
[1749763328445,6.53815904,152.95,152.92,20.53902955]
[1749763328628,6.53781915,152.96,152.93,20.53902955]
[1749763329742,6.53781915,152.96,152.92,20.53902955]
[1749763332742,6.53781915,152.96,152.9,118.08]
[1749763332921,6.53781915,152.96,152.92,20.53902955]
[1749763336443,6.53781915,152.96,152.9,118.08]
[1749763336654,27.0768487,152.96,152.91,20.53902955]
[1749763338451,27.0768487,152.96,152.9,118.08]
[1749763338771,27.0768487,152.96,152.91,20.53902955]
[1749763339344,13.13012444,152.95,152.9,131.21012444]
[1749763339645,19.66794359,152.96,152.91,13.13012444]
[1749763340256,6.53781915,152.96,152.91,13.13012444]
[1749763340477,19.66794359,152.96,152.91,13.13012444]
[1749763340849,6.53781915,152.96,152.92,13.13012444]
[1749763342170,6.53781915,152.96,152.93,13.13012444]
[1749763342585,6.53613377,153.0,152.95,13.13012444]
[1749763342775,6.53613377,153.0,152.97,13.13012444]
[1749763342943,32.53613377,153.0,152.97,13.13012444]
[1749763343144,6.53613377,153.0,152.97,13.13012444]
[1749763344675,32.53552055,153.01,152.97,13.13012444]
[1749763345055,6.53552055,153.01,152.97,13.13012444]
[1749763345251,6.53552055,153.01,152.97,20.49824219]
[1749763346482,6.53552055,153.01,152.94,29.52]
[1749763346672,6.53552055,153.01,152.97,20.49824219]
[1749763346874,27.03376274,153.01,152.96,20.49824219]
[1749763347054,6.53552055,153.01,152.97,20.49824219]
[1749763348554,20.49824219,152.98,152.92,6.1075]
[1749763348754,20.49824219,152.98,152.93,20.49824219]
[1749763349184,6.53722952,152.97,152.93,20.49824219]
[1749763349756,27.03547171,152.97,152.93,20.49824219]
[1749763350693,6.53722952,152.97,152.93,20.49824219]
[1749763353756,27.03547171,152.97,152.92,108.99824219]
[1749763354187,27.03547171,152.97,152.92,20.49824219]
[1749763355375,27.03547171,152.97,152.9,90.0753]
[1749763355589,20.49824219,152.96,152.91,20.49824219]
[1749763355890,27.03547171,152.97,152.92,20.49824219]
[1749763356394,6.53722952,152.97,152.93,20.49824219]
[1749763357879,6.53722952,152.97,152.94,20.49824219]
[1749763358280,6.53722952,152.97,152.95,20.49824219]
[1749763358976,6.53695032,152.98,152.95,20.49824219]
[1749763359588,22.07084219,153.02,152.97,20.49824219]
[1749763359791,32.53552055,153.01,152.97,20.49824219]
[1749763360000,4.77696922,153.0,152.97,20.49824219]
[1749763360292,11.31293427,153.0,152.97,20.49824219]
[1749763360491,4.77696922,153.0,152.97,20.49824219]
[1749763360796,4.77966574,153.0,152.98,20.49824219]
[1749763360983,30.77966574,153.01,152.98,20.49824219]
[1749763361190,2.39665947,153.0,152.98,20.49824219]
[1749763361570,2.39666186,153.0,152.98,20.49824219]
[1749763361769,2.39667735,153.0,152.98,20.49824219]
[1749763361989,2.39667735,153.0,152.99,20.49824219]
[1749763362287,33.17637503,153.03,152.99,20.49824219]
[1749763362481,2.39670929,153.02,153.0,20.49824219]
[1749763362799,30.77966574,153.04,153.0,20.49824219]
[1749763364896,37.31393697,153.04,153.0,20.49824219]
[1749763365094,32.53427123,153.04,153.0,20.49824219]
[1749763365598,26.0,153.04,153.0,20.49824219]
[1749763365793,30.77772145,153.04,153.0,20.49824219]
[1749763365994,26.0,153.04,153.01,20.49824219]
[1749763366499,30.77492307,153.04,153.01,20.49824219]
[1749763366800,26.0,153.04,153.01,20.49824219]
[1749763367294,30.77347728,153.04,153.01,20.49824219]
[1749763367993,26.0,153.04,153.01,20.49824219]
[1749763368612,0.8900661,153.05,153.01,20.49824219]
[1749763368768,0.8900661,153.05,152.98,43.41666886]
[1749763368769,0.8900661,153.05,153.02,20.49824219]
[1749763368971,0.8900661,153.05,152.99,6.53620096]
[1749763368972,0.8900661,153.05,153.03,20.49824219]
[1749763372183,0.8900661,153.05,153.02,20.49824219]
[1749763375789,0.8900661,153.05,153.03,20.49824219]
[1749763375988,0.8900661,153.05,153.04,20.49824219]
[1749763384789,0.8900661,153.05,153.02,117.88]
[1749763384991,0.8900661,153.05,153.04,20.49824219]
[1749763386208,0.8900661,153.05,153.04,108.99824219]
[1749763386420,0.8900661,153.05,153.04,39.57437576]
[1749763386586,0.8900661,153.05,153.04,66.60685736]
[1749763389410,0.8900661,153.05,153.04,95.94685736]
[1749763391102,0.8900661,153.05,153.04,184.44685736]
[1749763393033,0.8900661,153.05,153.04,210.44685736]
[1749763393409,6.53022128,153.14,153.05,19.07613357]
[1749763393610,6.53022128,153.14,153.11,20.49824219]
[1749763394630,34.13179838,153.15,153.12,20.49824219]
[1749763394815,8.13179838,153.15,153.12,20.49824219]
[1749763395840,8.13179838,153.15,153.11,29.3]
[1749763396135,8.13179838,153.15,153.11,49.79824219]
[1749763400004,1.6021,153.15,153.12,20.49824219]
[1749763400211,26.0,153.17,153.14,20.49824219]
[1749763400932,6.52833044,153.18,153.15,20.49824219]
[1749763401136,46.49824219,153.19,153.14,20.49824219]
[1749763401137,26.0,153.19,153.14,20.49824219]
[1749763401310,46.49824219,153.19,153.15,20.49824219]